[Event "Early-Titled-Tuesday-Blitz-May-07-2024"]
[Site "Chess.com"]
[Date "2024.05.07"]
[Round "9"]
[White "Chessdreamer2020"]
[Black "Louis-Paulsen-Fan"]
[Result "1-0"]
[WhiteElo "2516"]
[BlackElo "2360"]
[TimeControl "180+1"]
[EndTime "9:49:19 PDT"]
[Termination "Chessdreamer2020 won by resignation"]

1. e4 {[%clk 0:02:59.2]} 1... Nf6 {[%clk 0:02:59.4]} 2. Nc3 {[%clk 0:02:58.9]}
2... e5 {[%clk 0:02:58.5]} 3. Nf3 {[%clk 0:02:57.9]} 3... Nc6 {[%clk 0:02:58.6]}
4. d4 {[%clk 0:02:57.7]} 4... Bb4 {[%clk 0:02:55.7]} 5. Nxe5 {[%clk 0:02:54.5]}
5... Qe7 {[%clk 0:02:52]} 6. Qd3 {[%clk 0:02:54.3]} 6... Nxe5 {[%clk 0:02:47.8]}
7. dxe5 {[%clk 0:02:55.2]} 7... Qxe5 {[%clk 0:02:47.4]} 8. Bd2 {[%clk
0:02:55.5]} 8... O-O {[%clk 0:02:41.1]} 9. O-O-O {[%clk 0:02:55]} 9... Bxc3
{[%clk 0:02:29.8]} 10. Bxc3 {[%clk 0:02:54.7]} 10... Qxe4 {[%clk 0:02:30.3]} 11.
Qg3 {[%clk 0:02:43.4]} 11... Qg6 {[%clk 0:02:27]} 12. Qxc7 {[%clk 0:02:35.4]}
12... d5 {[%clk 0:02:17]} 13. Bd3 {[%clk 0:02:28]} 13... Qh6+ {[%clk 0:02:13]}
14. Bd2 {[%clk 0:02:24.8]} 14... Qh5 {[%clk 0:02:03]} 15. f3 {[%clk 0:02:13]}
15... Be6 {[%clk 0:01:58.2]} 16. g4 {[%clk 0:02:07]} 16... Qh4 {[%clk
0:01:49.4]} 17. Qg3 {[%clk 0:02:05.4]} 17... Qxg3 {[%clk 0:01:42.9]} 18. hxg3
{[%clk 0:02:06.3]} 18... h6 {[%clk 0:01:28.9]} 19. g5 {[%clk 0:02:01.8]} 19...
Nd7 {[%clk 0:01:12.2]} 20. gxh6 {[%clk 0:02:01]} 20... g6 {[%clk 0:00:59.9]} 21.
h7+ {[%clk 0:02:00.6]} 21... Kg7 {[%clk 0:00:57.6]} 22. Bh6+ {[%clk 0:02:00]}
1-0

[Event "Early-Titled-Tuesday-Blitz-May-07-2024"]
[Site "Chess.com"]
[Date "2024.05.07"]
[Round "9"]
[White "lamomiajunior"]
[Black "Ivan11Martic"]
[Result "1-0"]
[WhiteElo "2809"]
[BlackElo "2626"]
[TimeControl "180+1"]
[EndTime "9:49:26 PDT"]
[Termination "lamomiajunior won by resignation"]

1. d4 {[%clk 0:03:00.9]} 1... Nf6 {[%clk 0:02:59.3]} 2. Nc3 {[%clk 0:03:00.8]}
2... d5 {[%clk 0:02:57.6]} 3. Bf4 {[%clk 0:03:01.3]} 3... g6 {[%clk 0:02:57]} 4.
e3 {[%clk 0:03:01.5]} 4... Bg7 {[%clk 0:02:57.4]} 5. h4 {[%clk 0:03:02.1]} 5...
c5 {[%clk 0:02:52.7]} 6. Nb5 {[%clk 0:02:56.9]} 6... Na6 {[%clk 0:02:51.6]} 7.
c3 {[%clk 0:02:57.6]} 7... O-O {[%clk 0:02:51]} 8. Be2 {[%clk 0:02:58.3]} 8...
Bd7 {[%clk 0:02:38.7]} 9. a4 {[%clk 0:02:58]} 9... Re8 {[%clk 0:02:30]} 10. h5
{[%clk 0:02:57.7]} 10... Ne4 {[%clk 0:02:29.3]} 11. hxg6 {[%clk 0:02:56.3]}
11... hxg6 {[%clk 0:02:30.2]} 12. Nf3 {[%clk 0:02:55.9]} 12... Bg4 {[%clk
0:02:27.3]} 13. Ne5 {[%clk 0:02:52.4]} 13... Bxe2 {[%clk 0:02:27.2]} 14. Qxe2
{[%clk 0:02:53.3]} 14... cxd4 {[%clk 0:02:21.2]} 15. exd4 {[%clk 0:02:53.4]}
15... Qc8 {[%clk 0:02:00.8]} 16. Qe3 {[%clk 0:02:45.7]} 16... Qf5 {[%clk
0:01:53.6]} 17. g4 {[%clk 0:02:44.5]} 17... Qe6 {[%clk 0:01:50.3]} 18. Qh3
{[%clk 0:02:39.2]} 18... g5 {[%clk 0:01:49.1]} 19. Be3 {[%clk 0:02:29.1]} 19...
Bxe5 {[%clk 0:01:34.1]} 20. dxe5 {[%clk 0:02:24.7]} 20... Qxe5 {[%clk
0:01:21.9]} 21. Bd4 {[%clk 0:02:21.8]} 21... Nxf2+ {[%clk 0:01:20.6]} 22. Kxf2
{[%clk 0:02:13.2]} 22... Qf4+ {[%clk 0:01:19.3]} 23. Kg1 {[%clk 0:02:13.7]}
23... f6 {[%clk 0:01:15.4]} 24. Re1 {[%clk 0:02:03]} 24... e5 {[%clk 0:01:09.5]}
25. Rf1 {[%clk 0:01:47]} 25... Qe4 {[%clk 0:01:04.1]} 26. Qh8+ {[%clk
0:01:46.3]} 26... Kf7 {[%clk 0:01:03.5]} 27. Qxf6+ {[%clk 0:01:47.2]} 1-0

[Event "Early-Titled-Tuesday-Blitz-May-07-2024"]
[Site "Chess.com"]
[Date "2024.05.07"]
[Round "9"]
[White "DarZay"]
[Black "MasterKroket"]
[Result "0-1"]
[WhiteElo "2344"]
[BlackElo "2514"]
[TimeControl "180+1"]
[EndTime "9:49:26 PDT"]
[Termination "MasterKroket won by resignation"]

1. e4 {[%clk 0:02:57.7]} 1... e5 {[%clk 0:02:59.5]} 2. Nf3 {[%clk 0:02:57]} 2...
Nc6 {[%clk 0:02:59.2]} 3. Bc4 {[%clk 0:02:56.4]} 3... Bc5 {[%clk 0:02:59]} 4. d3
{[%clk 0:02:55.7]} 4... Nf6 {[%clk 0:02:57.3]} 5. c3 {[%clk 0:02:55.2]} 5... a6
{[%clk 0:02:56.7]} 6. Bb3 {[%clk 0:02:54.1]} 6... h6 {[%clk 0:02:56.2]} 7. Nbd2
{[%clk 0:02:51.4]} 7... O-O {[%clk 0:02:51.4]} 8. O-O {[%clk 0:02:50.1]} 8... d5
{[%clk 0:02:50.6]} 9. Qe2 {[%clk 0:02:48.7]} 9... Re8 {[%clk 0:02:42.5]} 10. Rd1
{[%clk 0:02:48.3]} 10... d4 {[%clk 0:02:19.4]} 11. Nf1 {[%clk 0:02:45.9]} 11...
Be6 {[%clk 0:02:05.7]} 12. Bc2 {[%clk 0:02:43.6]} 12... Qd7 {[%clk 0:02:00.1]}
13. Ng3 {[%clk 0:02:41.3]} 13... Rad8 {[%clk 0:01:59]} 14. Nh4 {[%clk
0:02:40.1]} 14... Bg4 {[%clk 0:01:53.6]} 15. f3 {[%clk 0:02:38.4]} 15... dxc3+
{[%clk 0:01:53.9]} 16. Kh1 {[%clk 0:02:31.5]} 16... Nd4 {[%clk 0:01:42.4]} 17.
Qf2 {[%clk 0:02:21.3]} 17... Nb3 {[%clk 0:01:18.8]} 18. Be3 {[%clk 0:02:20.7]}
18... Bxe3 {[%clk 0:01:17.9]} 19. Qxe3 {[%clk 0:02:20.7]} 19... Nxa1 {[%clk
0:01:18.6]} 20. Rxa1 {[%clk 0:02:19.3]} 20... cxb2 {[%clk 0:01:18.8]} 21. Rb1
{[%clk 0:02:19.2]} 21... Be6 {[%clk 0:01:12.9]} 22. Rxb2 {[%clk 0:02:18.9]}
22... Qd4 {[%clk 0:01:10.8]} 23. Qxd4 {[%clk 0:02:16.7]} 23... Rxd4 {[%clk
0:01:10.3]} 24. Rxb7 {[%clk 0:02:16.4]} 24... g6 {[%clk 0:01:05.4]} 25. a4
{[%clk 0:02:11.8]} 25... c5 {[%clk 0:00:58.3]} 26. Ne2 {[%clk 0:02:09.1]} 26...
Rd7 {[%clk 0:00:55]} 27. Rb6 {[%clk 0:02:07.4]} 27... c4 {[%clk 0:00:55.2]} 28.
dxc4 {[%clk 0:02:02.4]} 28... Rd2 {[%clk 0:00:54.6]} 0-1

[Event "Early-Titled-Tuesday-Blitz-May-07-2024"]
[Site "Chess.com"]
[Date "2024.05.07"]
[Round "9"]
[White "juancruzarias"]
[Black "MVM2008"]
[Result "0-1"]
[WhiteElo "2712"]
[BlackElo "2584"]
[TimeControl "180+1"]
[EndTime "9:49:37 PDT"]
[Termination "MVM2008 won by resignation"]

1. d4 {[%clk 0:03:00.9]} 1... Nf6 {[%clk 0:02:58.4]} 2. c4 {[%clk 0:03:00.2]}
2... e6 {[%clk 0:02:57.9]} 3. g3 {[%clk 0:02:59.1]} 3... c5 {[%clk 0:02:52.5]}
4. d5 {[%clk 0:02:51.1]} 4... b5 {[%clk 0:02:50.8]} 5. Bg2 {[%clk 0:02:43.7]}
5... Bb7 {[%clk 0:02:49.2]} 6. Nc3 {[%clk 0:00:36.1]} 6... b4 {[%clk 0:02:42.4]}
7. Ne4 {[%clk 0:00:36.3]} 7... d6 {[%clk 0:02:27.3]} 8. Qd3 {[%clk 0:00:36]}
8... Nbd7 {[%clk 0:02:22.6]} 9. dxe6 {[%clk 0:00:35]} 9... Ne5 {[%clk
0:02:10.9]} 10. Nxf6+ {[%clk 0:00:06.9]} 10... Qxf6 {[%clk 0:02:07.6]} 11. exf7+
{[%clk 0:00:07.8]} 11... Qxf7 {[%clk 0:02:01.7]} 0-1

[Event "Early-Titled-Tuesday-Blitz-May-07-2024"]
[Site "Chess.com"]
[Date "2024.05.07"]
[Round "9"]
[White "GMT4114"]
[Black "stratacticos"]
[Result "1-0"]
[WhiteElo "1992"]
[BlackElo "1854"]
[TimeControl "180+1"]
[EndTime "9:49:40 PDT"]
[Termination "GMT4114 won by resignation"]

1. e4 {[%clk 0:03:00.9]} 1... c5 {[%clk 0:02:58]} 2. Nc3 {[%clk 0:03:00.5]} 2...
Nc6 {[%clk 0:02:57.4]} 3. Bb5 {[%clk 0:03:00.3]} 3... Na5 {[%clk 0:02:56.6]} 4.
Nf3 {[%clk 0:02:48.9]} 4... a6 {[%clk 0:02:56.3]} 5. Be2 {[%clk 0:02:46.4]} 5...
b5 {[%clk 0:02:55.9]} 6. d4 {[%clk 0:02:41.5]} 6... cxd4 {[%clk 0:02:55.3]} 7.
Nxd4 {[%clk 0:02:39.4]} 7... Bb7 {[%clk 0:02:50.8]} 8. Bg5 {[%clk 0:02:39.4]}
8... h6 {[%clk 0:02:47.8]} 9. Bh4 {[%clk 0:02:39.4]} 9... g5 {[%clk 0:02:47.4]}
10. Bg3 {[%clk 0:02:36.7]} 10... Bg7 {[%clk 0:02:47.1]} 11. Nf5 {[%clk
0:02:28.3]} 11... Bxc3+ {[%clk 0:02:43.4]} 12. bxc3 {[%clk 0:02:28.3]} 12...
Bxe4 {[%clk 0:02:39.7]} 13. Qd4 {[%clk 0:02:24.4]} 13... Bxf5 {[%clk 0:02:33.8]}
14. Qxh8 {[%clk 0:02:24.3]} 14... Kf8 {[%clk 0:02:32.9]} 15. h4 {[%clk
0:02:13.4]} 15... g4 {[%clk 0:02:30.3]} 16. f3 {[%clk 0:01:50.1]} 16... gxf3
{[%clk 0:02:25.3]} 17. Bxf3 {[%clk 0:01:48.5]} 17... Rc8 {[%clk 0:02:22.3]} 18.
Bf4 {[%clk 0:01:40.1]} 18... Qb6 {[%clk 0:02:14.8]} 19. O-O-O {[%clk 0:01:31.1]}
19... Nc4 {[%clk 0:01:36.1]} 20. g4 {[%clk 0:01:24.8]} 20... Be6 {[%clk
0:01:11.7]} 21. Bxh6+ {[%clk 0:01:20.4]} 1-0

[Event "Early-Titled-Tuesday-Blitz-May-07-2024"]
[Site "Chess.com"]
[Date "2024.05.07"]
[Round "9"]
[White "campochess"]
[Black "jinxy2009"]
[Result "0-1"]
[WhiteElo "2153"]
[BlackElo "2272"]
[TimeControl "180+1"]
[EndTime "9:49:43 PDT"]
[Termination "jinxy2009 won by resignation"]

1. d4 {[%clk 0:02:53.8]} 1... Nf6 {[%clk 0:02:59.1]} 2. Bg5 {[%clk 0:02:53.4]}
2... d5 {[%clk 0:02:57.4]} 3. Nd2 {[%clk 0:02:52.1]} 3... c5 {[%clk 0:02:55.5]}
4. e3 {[%clk 0:02:49.6]} 4... Nc6 {[%clk 0:02:54.8]} 5. c3 {[%clk 0:02:48.7]}
5... Bf5 {[%clk 0:02:52.3]} 6. Bb5 {[%clk 0:02:47.6]} 6... e6 {[%clk 0:02:51.5]}
7. Ngf3 {[%clk 0:02:46.6]} 7... Rc8 {[%clk 0:02:47.2]} 8. Ne5 {[%clk 0:02:41]}
8... Be7 {[%clk 0:02:45.5]} 9. O-O {[%clk 0:02:39.4]} 9... O-O {[%clk
0:02:45.2]} 10. Bxc6 {[%clk 0:02:37.4]} 10... bxc6 {[%clk 0:02:46.1]} 11. f3
{[%clk 0:02:33.4]} 11... cxd4 {[%clk 0:02:39.5]} 12. exd4 {[%clk 0:02:32.6]}
12... c5 {[%clk 0:02:39.5]} 13. Kh1 {[%clk 0:02:30.8]} 13... h6 {[%clk
0:02:38.8]} 14. Bxf6 {[%clk 0:02:28.2]} 14... Bxf6 {[%clk 0:02:38.9]} 15. Re1
{[%clk 0:02:25.4]} 15... cxd4 {[%clk 0:02:38.4]} 16. cxd4 {[%clk 0:02:24.5]}
16... Qd6 {[%clk 0:02:32.1]} 17. Nb3 {[%clk 0:02:22.5]} 17... Bxe5 {[%clk
0:02:25.8]} 18. Rxe5 {[%clk 0:02:21]} 18... Rc4 {[%clk 0:02:25]} 19. Qe1 {[%clk
0:02:15]} 19... Rfc8 {[%clk 0:02:22.8]} 20. h3 {[%clk 0:02:03.3]} 20... Bg6
{[%clk 0:02:18.4]} 21. Qe3 {[%clk 0:01:59.4]} 21... Rc2 {[%clk 0:02:15.1]} 22.
Nc5 {[%clk 0:01:54.9]} 22... Rxb2 {[%clk 0:02:14.1]} 23. Qa3 {[%clk 0:01:51.8]}
23... Qb6 {[%clk 0:02:08.2]} 24. Nd7 {[%clk 0:01:40.6]} 24... Qxd4 {[%clk
0:02:04.8]} 25. Rae1 {[%clk 0:01:33.8]} 25... Qf2 {[%clk 0:01:46.6]} 26. Rg1
{[%clk 0:01:25.5]} 26... Rc1 {[%clk 0:01:41.9]} 27. Ree1 {[%clk 0:00:56.8]}
27... Rxe1 {[%clk 0:01:40.1]} 0-1

[Event "Early-Titled-Tuesday-Blitz-May-07-2024"]
[Site "Chess.com"]
[Date "2024.05.07"]
[Round "9"]
[White "cthulhuuu"]
[Black "littlepinkyboy"]
[Result "1-0"]
[WhiteElo "2535"]
[BlackElo "2645"]
[TimeControl "180+1"]
[EndTime "9:49:44 PDT"]
[Termination "cthulhuuu won on time"]

1. e4 {[%clk 0:03:00.1]} 1... c5 {[%clk 0:02:59.6]} 2. Nf3 {[%clk 0:03:00.3]}
2... e6 {[%clk 0:02:59.3]} 3. d3 {[%clk 0:03:00.4]} 3... d5 {[%clk 0:02:57.8]}
4. Nbd2 {[%clk 0:03:00.9]} 4... Nc6 {[%clk 0:02:57.5]} 5. g3 {[%clk 0:03:01.7]}
5... Nf6 {[%clk 0:02:58]} 6. Bg2 {[%clk 0:03:02.2]} 6... Be7 {[%clk 0:02:56.4]}
7. O-O {[%clk 0:03:02.9]} 7... O-O {[%clk 0:02:57.1]} 8. e5 {[%clk 0:03:03.3]}
8... Nd7 {[%clk 0:02:56.7]} 9. Re1 {[%clk 0:03:04.2]} 9... Qc7 {[%clk
0:02:54.5]} 10. Qe2 {[%clk 0:03:05.1]} 10... b5 {[%clk 0:02:51.7]} 11. h4 {[%clk
0:03:05.2]} 11... Bb7 {[%clk 0:02:49.8]} 12. Nf1 {[%clk 0:03:05.9]} 12... d4
{[%clk 0:02:44.7]} 13. N1h2 {[%clk 0:02:58.6]} 13... Rae8 {[%clk 0:02:39.2]} 14.
Bf4 {[%clk 0:02:57.3]} 14... Qc8 {[%clk 0:02:28.1]} 15. Ng5 {[%clk 0:02:57]}
15... h6 {[%clk 0:01:56.1]} 16. Qh5 {[%clk 0:02:56.9]} 16... Ncxe5 {[%clk
0:00:42.3]} 17. Bxe5 {[%clk 0:02:54.1]} 17... Nxe5 {[%clk 0:00:38.6]} 18. Rxe5
{[%clk 0:02:38.8]} 18... Bxg2 {[%clk 0:00:37.4]} 19. Kxg2 {[%clk 0:02:39.7]}
19... hxg5 {[%clk 0:00:19.3]} 20. hxg5 {[%clk 0:02:39.3]} 20... Qc6+ {[%clk
0:00:04.6]} 21. Nf3 {[%clk 0:02:38.9]} 21... Bd6 {[%clk 0:00:02.2]} 22. Rh1
{[%clk 0:02:36.6]} 22... f5 {[%clk 0:00:02.9]} 23. g6 {[%clk 0:02:31.6]} 1-0

[Event "Early-Titled-Tuesday-Blitz-May-07-2024"]
[Site "Chess.com"]
[Date "2024.05.07"]
[Round "9"]
[White "Kacparov"]
[Black "Msb2"]
[Result "1/2-1/2"]
[WhiteElo "2922"]
[BlackElo "3035"]
[TimeControl "180+1"]
[EndTime "9:49:50 PDT"]
[Termination "Game drawn by repetition"]

1. e4 {[%clk 0:03:00.9]} 1... e6 {[%clk 0:03:00.3]} 2. d4 {[%clk 0:03:00.5]}
2... d5 {[%clk 0:03:01]} 3. Nd2 {[%clk 0:03:00.8]} 3... c5 {[%clk 0:03:01.7]} 4.
exd5 {[%clk 0:02:59]} 4... Qxd5 {[%clk 0:03:02.6]} 5. dxc5 {[%clk 0:02:59.4]}
5... Nf6 {[%clk 0:03:02.2]} 6. Ngf3 {[%clk 0:02:59.9]} 6... Qxc5 {[%clk
0:03:02.8]} 7. Bd3 {[%clk 0:02:59.9]} 7... Nbd7 {[%clk 0:03:03.4]} 8. O-O {[%clk
0:02:59.2]} 8... Qc7 {[%clk 0:03:04]} 9. Qe2 {[%clk 0:02:59.3]} 9... Nc5 {[%clk
0:03:04.6]} 10. Bc4 {[%clk 0:02:57.2]} 10... Bd6 {[%clk 0:03:01.2]} 11. b3
{[%clk 0:02:53.6]} 11... a6 {[%clk 0:02:55]} 12. a4 {[%clk 0:02:52.6]} 12... O-O
{[%clk 0:02:50.9]} 13. Bb2 {[%clk 0:02:52.5]} 13... b6 {[%clk 0:02:51.3]} 14.
Rfe1 {[%clk 0:02:31.2]} 14... Bb7 {[%clk 0:02:45.2]} 15. Ne5 {[%clk 0:02:27.3]}
15... Nfe4 {[%clk 0:02:36.5]} 16. Ndf3 {[%clk 0:02:21.1]} 16... h6 {[%clk
0:02:08.5]} 17. Rad1 {[%clk 0:02:18.3]} 17... Nf6 {[%clk 0:01:59.7]} 18. Qe3
{[%clk 0:01:54.9]} 18... Nce4 {[%clk 0:01:51]} 19. Bd4 {[%clk 0:01:39.5]} 19...
b5 {[%clk 0:01:33.7]} 20. axb5 {[%clk 0:01:37.2]} 20... axb5 {[%clk 0:01:34.6]}
21. Bxb5 {[%clk 0:01:29.1]} 21... Qxc2 {[%clk 0:01:04.5]} 22. Rc1 {[%clk
0:01:27.4]} 22... Qa2 {[%clk 0:01:04.7]} 23. Ra1 {[%clk 0:01:19.6]} 23... Qc2
{[%clk 0:01:04.9]} 24. Rac1 {[%clk 0:01:15.1]} 24... Qa2 {[%clk 0:01:04.2]} 25.
Ra1 {[%clk 0:01:15.2]} 25... Qc2 {[%clk 0:01:04.4]} 26. Rac1 {[%clk 0:01:15.6]}
1/2-1/2

[Event "Early-Titled-Tuesday-Blitz-May-07-2024"]
[Site "Chess.com"]
[Date "2024.05.07"]
[Round "9"]
[White "SRob2003"]
[Black "FaustinoOro"]
[Result "1-0"]
[WhiteElo "2666"]
[BlackElo "2857"]
[TimeControl "180+1"]
[EndTime "9:50:02 PDT"]
[Termination "SRob2003 won by resignation"]

1. e4 {[%clk 0:03:00.9]} 1... e5 {[%clk 0:02:59.1]} 2. Nf3 {[%clk 0:03:00.8]}
2... Nc6 {[%clk 0:02:59.3]} 3. Bb5 {[%clk 0:03:00.3]} 3... a6 {[%clk 0:02:59.4]}
4. Ba4 {[%clk 0:03:00.5]} 4... Nf6 {[%clk 0:02:59.6]} 5. Nc3 {[%clk 0:02:55.8]}
5... b5 {[%clk 0:02:52.6]} 6. Bb3 {[%clk 0:02:55.2]} 6... Bc5 {[%clk 0:02:52.5]}
7. d3 {[%clk 0:02:53.6]} 7... h6 {[%clk 0:02:51.4]} 8. Nd5 {[%clk 0:02:52.1]}
8... Rb8 {[%clk 0:02:46.6]} 9. c3 {[%clk 0:02:52.3]} 9... d6 {[%clk 0:02:46.6]}
10. d4 {[%clk 0:02:46.4]} 10... Ba7 {[%clk 0:02:43.6]} 11. O-O {[%clk
0:02:32.8]} 11... O-O {[%clk 0:02:42.6]} 12. h3 {[%clk 0:02:18.4]} 12... exd4
{[%clk 0:02:24.8]} 13. cxd4 {[%clk 0:02:16.4]} 13... Nxe4 {[%clk 0:02:24.9]} 14.
Qc2 {[%clk 0:02:15.1]} 14... Nxd4 {[%clk 0:02:04.4]} 15. Nxd4 {[%clk 0:01:56]}
15... Bxd4 {[%clk 0:01:29.1]} 16. Qxe4 {[%clk 0:01:56.1]} 16... Be5 {[%clk
0:01:29.9]} 17. f4 {[%clk 0:01:43.6]} 17... Bf6 {[%clk 0:01:29.3]} 18. Bc2
{[%clk 0:01:40.2]} 18... g6 {[%clk 0:01:24.4]} 19. f5 {[%clk 0:01:40.6]} 19...
g5 {[%clk 0:01:22.8]} 20. Nxf6+ {[%clk 0:01:37.6]} 20... Qxf6 {[%clk 0:01:23.7]}
21. Bd2 {[%clk 0:01:34.4]} 21... Bb7 {[%clk 0:01:13.7]} 22. Qd3 {[%clk
0:01:28.5]} 22... Rfe8 {[%clk 0:00:57.4]} 23. Bc3 {[%clk 0:01:28.2]} 23... Qd8
{[%clk 0:00:53.7]} 24. Rae1 {[%clk 0:01:25.4]} 1-0

[Event "Early-Titled-Tuesday-Blitz-May-07-2024"]
[Site "Chess.com"]
[Date "2024.05.07"]
[Round "9"]
[White "IM_ArthurDW08"]
[Black "Thjop"]
[Result "0-1"]
[WhiteElo "2721"]
[BlackElo "2618"]
[TimeControl "180+1"]
[EndTime "9:50:13 PDT"]
[Termination "Thjop won by resignation"]

1. e4 {[%clk 0:03:00.9]} 1... e6 {[%clk 0:02:48.6]} 2. d4 {[%clk 0:02:56.3]}
2... d5 {[%clk 0:02:48.4]} 3. Nc3 {[%clk 0:02:57.2]} 3... Bb4 {[%clk 0:02:47.6]}
4. e5 {[%clk 0:02:56]} 4... c5 {[%clk 0:02:43.5]} 5. a3 {[%clk 0:02:55.8]} 5...
Bxc3+ {[%clk 0:02:44]} 6. bxc3 {[%clk 0:02:56.7]} 6... Qa5 {[%clk 0:02:44.3]} 7.
Bd2 {[%clk 0:02:56.2]} 7... Qa4 {[%clk 0:02:41]} 8. h4 {[%clk 0:02:52.5]} 8...
Ne7 {[%clk 0:02:33.1]} 9. Rb1 {[%clk 0:02:43.7]} 9... c4 {[%clk 0:02:31.6]} 10.
Qc1 {[%clk 0:02:38.7]} 10... Nbc6 {[%clk 0:02:29.5]} 11. Nf3 {[%clk 0:02:32.7]}
11... h6 {[%clk 0:02:29.6]} 12. h5 {[%clk 0:02:30.2]} 12... b6 {[%clk
0:02:26.8]} 13. Be2 {[%clk 0:02:16.9]} 13... Bd7 {[%clk 0:02:26.4]} 14. O-O
{[%clk 0:02:08.8]} 14... O-O-O {[%clk 0:02:25.6]} 15. Bd1 {[%clk 0:02:06.6]}
15... Rdg8 {[%clk 0:02:24.8]} 16. Nh4 {[%clk 0:01:58.7]} 16... Kb7 {[%clk
0:02:12.3]} 17. f4 {[%clk 0:01:53.1]} 17... g6 {[%clk 0:02:10.1]} 18. hxg6
{[%clk 0:01:48.3]} 18... fxg6 {[%clk 0:02:11]} 19. Be3 {[%clk 0:01:39.2]} 19...
Nf5 {[%clk 0:02:04.8]} 20. Nxf5 {[%clk 0:01:35.7]} 20... gxf5 {[%clk 0:02:05.7]}
21. Bf3 {[%clk 0:01:33.1]} 21... h5 {[%clk 0:01:59.1]} 22. Kf2 {[%clk 0:01:32]}
22... Be8 {[%clk 0:01:58.4]} 23. Rh1 {[%clk 0:01:31.3]} 23... h4 {[%clk
0:01:54]} 24. Rh3 {[%clk 0:01:28.6]} 24... Bh5 {[%clk 0:01:51.5]} 25. Rxh4
{[%clk 0:01:28]} 25... Bxf3 {[%clk 0:01:50.1]} 26. Rxh8 {[%clk 0:01:28.9]} 26...
Rxh8 {[%clk 0:01:49.2]} 27. Kxf3 {[%clk 0:01:24]} 27... Rh7 {[%clk 0:01:46.1]}
28. Rb2 {[%clk 0:01:13.2]} 28... Kc7 {[%clk 0:01:43.7]} 29. Ra2 {[%clk
0:01:07.9]} 29... Ne7 {[%clk 0:01:32.5]} 30. Qe1 {[%clk 0:00:58.6]} 30... Qe8
{[%clk 0:01:30.9]} 31. Qg3 {[%clk 0:00:59.1]} 31... Qh5+ {[%clk 0:01:28.6]} 32.
Kf2 {[%clk 0:00:59.4]} 32... Qd1 {[%clk 0:01:27.1]} 0-1

[Event "Early-Titled-Tuesday-Blitz-May-07-2024"]
[Site "Chess.com"]
[Date "2024.05.07"]
[Round "9"]
[White "Aminazinas"]
[Black "LileKoridze"]
[Result "1-0"]
[WhiteElo "2624"]
[BlackElo "2380"]
[TimeControl "180+1"]
[EndTime "9:50:13 PDT"]
[Termination "Aminazinas won by resignation"]

1. e4 {[%clk 0:03:00.9]} 1... c5 {[%clk 0:03:00]} 2. Nc3 {[%clk 0:03:00.2]} 2...
d6 {[%clk 0:02:59.6]} 3. f4 {[%clk 0:03:00.2]} 3... a6 {[%clk 0:02:59.6]} 4. a4
{[%clk 0:02:59.5]} 4... Nc6 {[%clk 0:02:59.1]} 5. Nf3 {[%clk 0:02:59.7]} 5... e6
{[%clk 0:02:55]} 6. Bc4 {[%clk 0:02:59.6]} 6... Nf6 {[%clk 0:02:54.3]} 7. d3
{[%clk 0:02:56.8]} 7... Be7 {[%clk 0:02:53.8]} 8. O-O {[%clk 0:02:56.5]} 8...
O-O {[%clk 0:02:52.7]} 9. Qe1 {[%clk 0:02:55.1]} 9... d5 {[%clk 0:02:53]} 10.
Bb3 {[%clk 0:02:54.6]} 10... dxe4 {[%clk 0:02:52.7]} 11. dxe4 {[%clk 0:02:53.5]}
11... b6 {[%clk 0:02:06.6]} 12. Be3 {[%clk 0:02:50.4]} 12... Bb7 {[%clk
0:02:04.5]} 13. Rd1 {[%clk 0:02:46.6]} 13... Qc7 {[%clk 0:02:04]} 14. h3 {[%clk
0:02:44.8]} 14... Rfd8 {[%clk 0:02:01.9]} 15. f5 {[%clk 0:02:28]} 15... Nd4
{[%clk 0:01:50.5]} 16. fxe6 {[%clk 0:02:17.9]} 16... Nxe6 {[%clk 0:01:46]} 17.
Nd5 {[%clk 0:02:14.5]} 17... Nxd5 {[%clk 0:01:40.1]} 18. exd5 {[%clk 0:02:13.4]}
18... Nf8 {[%clk 0:01:37.1]} 19. Bf4 {[%clk 0:02:00.5]} 19... Qxf4 {[%clk
0:01:23.8]} 20. Qxe7 {[%clk 0:01:57.3]} 20... Rd7 {[%clk 0:01:23.1]} 21. Qe5
{[%clk 0:01:55.6]} 21... Qh6 {[%clk 0:01:19.2]} 22. d6 {[%clk 0:01:47.9]} 22...
Bxf3 {[%clk 0:00:56.1]} 23. Rxf3 {[%clk 0:01:44.8]} 23... Rad8 {[%clk
0:00:56.1]} 24. Rdf1 {[%clk 0:01:35.6]} 24... Qxd6 {[%clk 0:00:52.3]} 25. Qxd6
{[%clk 0:01:20.7]} 25... Rxd6 {[%clk 0:00:52.5]} 26. Rxf7 {[%clk 0:01:20.5]}
26... Ne6 {[%clk 0:00:47.1]} 27. Re7 {[%clk 0:01:16.6]} 1-0

[Event "Early-Titled-Tuesday-Blitz-May-07-2024"]
[Site "Chess.com"]
[Date "2024.05.07"]
[Round "9"]
[White "highlama"]
[Black "JiiHart"]
[Result "1-0"]
[WhiteElo "2400"]
[BlackElo "2179"]
[TimeControl "180+1"]
[EndTime "9:50:16 PDT"]
[Termination "highlama won by checkmate"]

1. c4 {[%clk 0:03:00.9]} 1... c5 {[%clk 0:02:57.5]} 2. Nf3 {[%clk 0:02:59.8]}
2... Nf6 {[%clk 0:02:57.7]} 3. g3 {[%clk 0:03:00.4]} 3... g6 {[%clk 0:02:58.2]}
4. Bg2 {[%clk 0:03:01]} 4... Bg7 {[%clk 0:02:58.9]} 5. O-O {[%clk 0:03:01.5]}
5... O-O {[%clk 0:02:59.5]} 6. Nc3 {[%clk 0:03:00.5]} 6... Nc6 {[%clk
0:02:58.6]} 7. d4 {[%clk 0:03:00.4]} 7... d5 {[%clk 0:02:58.8]} 8. dxc5 {[%clk
0:02:51.8]} 8... dxc4 {[%clk 0:02:55.1]} 9. Qa4 {[%clk 0:02:48.8]} 9... Qa5
{[%clk 0:02:38.7]} 10. Qxc4 {[%clk 0:02:36.6]} 10... Be6 {[%clk 0:02:37.6]} 11.
Qb5 {[%clk 0:02:37.1]} 11... Qxb5 {[%clk 0:02:18.3]} 12. Nxb5 {[%clk 0:02:38]}
12... Ne4 {[%clk 0:02:18.4]} 13. Nc7 {[%clk 0:02:34.7]} 13... Rac8 {[%clk
0:02:17.6]} 14. Nxe6 {[%clk 0:02:35.1]} 14... fxe6 {[%clk 0:02:17.8]} 15. Bh3
{[%clk 0:02:35]} 15... Nxc5 {[%clk 0:02:10.7]} 16. Be3 {[%clk 0:02:34.9]} 16...
Nd8 {[%clk 0:02:02]} 17. Rac1 {[%clk 0:02:31.9]} 17... b6 {[%clk 0:02:00.4]} 18.
b4 {[%clk 0:02:31.8]} 18... Bb2 {[%clk 0:01:17]} 19. Rc2 {[%clk 0:02:28.4]}
19... Ba3 {[%clk 0:01:16.8]} 20. bxc5 {[%clk 0:02:27.4]} 20... bxc5 {[%clk
0:01:04.7]} 21. Rb1 {[%clk 0:02:24.4]} 21... c4 {[%clk 0:00:42.6]} 22. Nd2
{[%clk 0:02:20.8]} 22... c3 {[%clk 0:00:37.2]} 23. Ne4 {[%clk 0:02:15]} 23...
Bb2 {[%clk 0:00:33.1]} 24. Bc1 {[%clk 0:02:13.9]} 24... Rc4 {[%clk 0:00:17.6]}
25. f3 {[%clk 0:02:13.7]} 25... Bxc1 {[%clk 0:00:12.6]} 26. Rbxc1 {[%clk
0:02:09.8]} 26... Kg7 {[%clk 0:00:13.1]} 27. Rxc3 {[%clk 0:02:09.3]} 27... Rxc3
{[%clk 0:00:13.1]} 28. Rxc3 {[%clk 0:02:10.2]} 28... Nb7 {[%clk 0:00:13.4]} 29.
Rc7 {[%clk 0:02:08.5]} 29... Na5 {[%clk 0:00:13]} 30. Rxe7+ {[%clk 0:02:08.2]}
30... Kg8 {[%clk 0:00:12.6]} 31. Bxe6+ {[%clk 0:02:07.2]} 31... Kh8 {[%clk
0:00:13.1]} 32. Ng5 {[%clk 0:02:06.7]} 32... Nc6 {[%clk 0:00:07.4]} 33. Rxh7#
{[%clk 0:02:06.2]} 1-0